bitfinex/quotes_BTCUSD_20220211
["timestamp","ask_amount","ask_price","bid_price","bid_amount"]
[1644590315219,0.21477,43589.0,43585.0,0.00074242]
[1644590315818,0.1,43589.0,43585.0,0.00074242]
[1644590316023,0.1,43593.0,43586.0,0.324163]
[1644590316620,0.01,43599.0,43586.0,0.324163]
[1644590316818,0.01,43599.0,43588.0,0.05735989]
[1644590317079,0.01,43609.0,43595.0,0.07239437]
[1644590317279,0.01,43609.0,43595.0,0.39655737]
[1644590317476,0.01,43609.0,43607.0,0.06630671]
[1644590317682,0.58566843,43597.0,43590.0,0.3]
[1644590317876,0.06,43609.0,43589.0,0.28539879]
[1644590317877,0.26460926,43608.0,43589.0,0.28539879]
[1644590318077,0.32544017,43605.0,43589.0,0.34276116]
[1644590318276,0.32544017,43605.0,43587.0,7.089e-05]
[1644590318277,0.36444114,43598.0,43587.0,7.089e-05]
[1644590318478,0.01,43609.0,43589.0,0.05]
[1644590318479,0.3,43603.0,43589.0,0.05]
[1644590318684,0.01,43609.0,43606.0,0.23431086]
[1644590318879,0.01,43609.0,43603.0,0.38988654]
[1644590318880,0.01,43609.0,43608.0,0.05]
[1644590319078,0.01,43609.0,43603.0,0.06572354]
[1644590319280,0.291382,43608.0,43591.0,0.3]
[1644590319478,0.291382,43608.0,43590.0,0.050743]
[1644590319479,0.38608747,43599.0,43590.0,0.050743]
[1644590319679,0.291382,43598.0,43590.0,0.000743]
[1644590319878,0.291382,43598.0,43587.0,7.089e-05]
[1644590320078,0.30442333,43597.0,43587.0,7.089e-05]
[1644590320281,0.05,43594.0,43587.0,7.089e-05]
[1644590320478,0.39317907,43590.0,43587.0,7.089e-05]
[1644590320679,0.291382,43589.0,43587.0,7.089e-05]
[1644590320924,0.341382,43589.0,43587.0,7.089e-05]
[1644590321124,0.291382,43588.0,43587.0,7.089e-05]
[1644590322525,0.291382,43588.0,43585.0,0.00074303]
[1644590322724,0.33773129,43587.0,43585.0,0.00074303]
[1644590323123,0.33773129,43587.0,43585.0,3.03e-06]
[1644590323124,0.21568914,43587.0,43585.0,3.03e-06]
[1644590323325,0.291382,43586.0,43585.0,3.03e-06]
[1644590323622,0.291382,43586.0,43564.0,0.05]
[1644590323623,0.35050384,43568.0,43564.0,0.05]
[1644590323824,0.50792184,43568.0,43557.0,0.0522]
[1644590324226,0.39364073,43575.0,43564.0,0.36439995]
[1644590324423,0.1,43575.0,43569.0,0.05]
[1644590324869,0.1,43575.0,43570.0,0.08734012]
[1644590325069,0.1,43575.0,43574.0,0.05]
[1644590325070,0.22,43575.0,43574.0,0.05]
[1644590325270,0.22,43575.0,43574.0,0.9588448]
[1644590325472,0.511382,43575.0,43574.0,0.38664403]
[1644590325770,0.22,43575.0,43574.0,0.08431086]
[1644590325968,0.22,43575.0,43574.0,0.05]
[1644590326172,0.05,43591.0,43578.0,0.057377]
[1644590326370,0.00205463,43598.0,43589.0,0.05]
[1644590326570,0.00205463,43598.0,43588.0,0.05]
[1644590326771,0.00205463,43598.0,43575.0,0.61099198]
[1644590326772,0.291382,43593.0,43575.0,0.61099198]
[1644590326971,2.07391541,43589.0,43575.0,0.61099198]
[1644590327170,0.36248929,43584.0,43575.0,0.61099198]
[1644590327370,0.057399,43582.0,43575.0,0.61099198]
[1644590327570,2.07391541,43589.0,43583.0,0.0007022]
[1644590327778,0.1,43596.0,43586.0,0.05]
[1644590327970,0.1,43596.0,43583.0,0.0007022]
[1644590328175,0.291382,43593.0,43584.0,0.23964532]
[1644590328443,0.2551064,43594.0,43586.0,0.39084537]
[1644590328444,0.22986724,43591.0,43586.0,0.39084537]
[1644590329130,0.22986724,43591.0,43587.0,0.07678183]
[1644590329630,0.00260713,43594.0,43587.0,0.07678183]
[1644590329831,0.00260713,43594.0,43588.0,0.30671912]
[1644590330034,0.00260713,43594.0,43593.0,0.05]
[1644590330232,0.00260713,43594.0,43593.0,0.68183244]
[1644590330734,0.00260713,43594.0,43593.0,0.324163]
[1644590331033,0.00260713,43594.0,43589.0,0.05]
[1644590331431,0.00260713,43594.0,43587.0,0.07678183]
[1644590331632,0.76572719,43593.0,43582.0,0.0387]
[1644590331833,0.76572719,43593.0,43578.0,0.05]
[1644590331834,0.291382,43592.0,43578.0,0.05]
[1644590332065,0.11478,43589.0,43583.0,0.00069757]
[1644590332464,0.1,43592.0,43584.0,0.29455125]
[1644590332665,0.1,43592.0,43588.0,6.733e-05]
[1644590332864,0.291382,43591.0,43588.0,6.733e-05]
[1644590333065,0.1,43592.0,43588.0,6.733e-05]
[1644590333468,0.00260713,43594.0,43588.0,6.733e-05]
[1644590333866,0.22809752,43592.0,43588.0,6.733e-05]
[1644590334167,0.291382,43591.0,43588.0,6.733e-05]
[1644590335068,0.291382,43590.0,43588.0,6.733e-05]
[1644590335267,0.341382,43590.0,43588.0,6.733e-05]
[1644590335469,0.398783,43590.0,43588.0,6.733e-05]
[1644590335666,0.207401,43590.0,43588.0,6.733e-05]
[1644590335919,0.15,43590.0,43588.0,6.733e-05]
[1644590336216,0.441382,43590.0,43588.0,6.733e-05]
[1644590336816,0.291382,43585.0,43576.0,0.3]
[1644590337018,0.291382,43585.0,43583.0,0.00070393]
[1644590337216,0.291382,43584.0,43583.0,0.00070393]
[1644590337420,0.57176121,43584.0,43575.0,0.89474123]
[1644590337619,0.291382,43580.0,43575.0,0.60669591]
[1644590337821,0.291382,43578.0,43575.0,0.60669591]
[1644590338219,0.341382,43578.0,43575.0,0.60669591]
[1644590338422,0.2857035,43576.0,43575.0,0.60669591]
[1644590338619,0.291382,43576.0,43575.0,0.60669591]
[1644590338820,0.341382,43576.0,43575.0,0.60669591]
[1644590339020,2.17358205,43576.0,43575.0,0.60669591]
[1644590339218,2.27358205,43576.0,43575.0,0.60669591]
[1644590339665,2.60265454,43576.0,43575.0,0.60669591]
[1644590340268,1.98220005,43576.0,43575.0,0.60669591]
[1644590340466,0.207407,43576.0,43575.0,0.60669591]
[1644590340666,0.25010278,43581.0,43576.0,0.31537709]
[1644590340865,0.291382,43580.0,43576.0,0.31537709]
[1644590341070,0.057398,43582.0,43576.0,0.31537709]
[1644590341268,0.55756627,43581.0,43576.0,0.31537709]
[1644590341466,0.291382,43580.0,43576.0,0.31537709]
[1644590341670,0.291382,43580.0,43577.0,0.12087845]
[1644590341869,0.291382,43580.0,43578.0,0.18969746]
[1644590342270,0.22975486,43586.0,43579.0,1.35]
[1644590342471,0.22975486,43586.0,43585.0,0.79533166]
[1644590342669,0.00069728,43587.0,43586.0,1.1]
[1644590342869,0.00260713,43594.0,43586.0,1.3]
[1644590343068,0.00260713,43594.0,43591.0,0.14060509]
[1644590343323,0.00279037,43596.0,43593.0,1.1]
[1644590343522,0.05,43605.0,43595.0,0.14060509]
[1644590343725,0.1227,43614.0,43600.0,0.38347426]
[1644590343921,0.05,43615.0,43600.0,0.38347426]
[1644590344123,0.05,43615.0,43605.0,0.14060509]
[1644590344323,0.1878078,43614.0,43608.0,0.28556017]
[1644590344522,0.1878078,43614.0,43608.0,0.35166643]
[1644590344722,0.36374035,43609.0,43608.0,0.06610626]
[1644590344923,0.36374035,43609.0,43594.0,0.17207303]
[1644590345123,0.36374035,43609.0,43593.0,0.05737592]
[1644590345522,0.36374035,43609.0,43595.0,0.057376]
[1644590345922,0.25650849,43604.0,43603.0,0.08577963]
[1644590346123,0.25650849,43604.0,43590.0,0.3052804]
[1644590346124,0.00857796,43602.0,43587.0,0.3]
[1644590346327,0.05,43599.0,43583.0,0.28695117]
[1644590346522,0.3,43598.0,43594.0,0.00073573]
[1644590346721,0.05,43599.0,43594.0,0.00073573]
[1644590346923,0.36902529,43598.0,43594.0,0.00073573]
[1644590347180,0.18713784,43596.0,43594.0,0.00073573]
[1644590347664,0.18713784,43596.0,43589.0,0.33424566]
[1644590347864,0.18713784,43596.0,43589.0,0.32998131]
[1644590348064,0.28034222,43589.0,43581.0,0.1721628]
[1644590348264,0.28034222,43589.0,43586.0,0.07332195]
[1644590348665,0.28034222,43589.0,43581.0,0.114774]
[1644590348880,0.28034222,43589.0,43576.0,0.81537709]
[1644590348881,0.32328873,43588.0,43576.0,0.81537709]
[1644590349068,0.39310755,43583.0,43576.0,0.81537709]
[1644590349272,0.54310755,43583.0,43576.0,0.81537709]
[1644590349564,0.057412,43581.0,43576.0,0.81537709]
[1644590349766,0.057412,43582.0,43576.0,0.81537709]
[1644590349965,0.314816,43595.0,43577.0,0.21270434]
[1644590349966,0.3,43592.0,43577.0,0.21270434]
[1644590350165,0.34191547,43593.0,43576.0,0.81537709]
[1644590350369,0.28658415,43590.0,43586.0,0.31551099]
[1644590350569,0.3,43592.0,43586.0,0.31551099]
[1644590350814,0.60277001,43595.0,43586.0,0.31551099]
[1644590350815,0.22977508,43595.0,43586.0,0.31551099]
[1644590351018,0.44312706,43595.0,43577.0,0.114778]
[1644590351420,0.44312706,43595.0,43588.0,0.06345546]
[1644590351615,0.22977508,43595.0,43589.0,0.323973]
[1644590351816,0.22977508,43595.0,43590.0,0.323973]
[1644590352015,0.22977508,43595.0,43588.0,0.12083546]
[1644590352016,0.22977508,43595.0,43592.0,0.6219499]
[1644590352214,0.22977508,43595.0,43594.0,0.14060509]
[1644590352415,0.22977508,43595.0,43594.0,0.46457809]
[1644590352614,0.22977508,43595.0,43594.0,0.69463792]
[1644590352814,0.00051301,43597.0,43595.0,0.39678338]
[1644590353019,0.00051301,43597.0,43595.0,0.07281038]
[1644590353616,0.00857796,43602.0,43595.0,0.07281038]
[1644590353817,0.00857796,43602.0,43601.0,0.38642331]
[1644590354416,0.00205173,43606.0,43601.0,0.38642331]
[1644590354864,0.24583589,43608.0,43602.0,0.06483274]
[1644590355062,0.00051303,43606.0,43602.0,0.06483274]
[1644590356063,0.32530555,43604.0,43602.0,0.06483274]
[1644590356768,0.38268055,43604.0,43602.0,0.06483274]
[1644590356963,0.38268055,43604.0,43591.0,0.00074356]
[1644590357163,0.38268055,43604.0,43590.0,0.14060509]
[1644590357164,0.057375,43604.0,43590.0,0.14060509]
[1644590357364,0.3,43603.0,43591.0,0.00074355]
[1644590357563,0.64512836,43608.0,43591.0,0.38892028]
[1644590357564,0.37191195,43601.0,43591.0,0.38892028]
[1644590357763,0.56681023,43601.0,43591.0,0.38892028]
[1644590357964,0.057383,43598.0,43596.0,0.0821579]
[1644590358414,0.057383,43598.0,43591.0,0.38892028]
[1644590358415,0.057383,43598.0,43591.0,0.38817673]
[1644590358612,0.26195868,43597.0,43591.0,0.00074348]
[1644590359418,0.114775,43596.0,43591.0,0.00074348]
[1644590359616,0.39306566,43586.0,43577.0,0.35582212]
[1644590359815,0.30448189,43585.0,43577.0,0.35582212]
[1644590360014,0.31845522,43584.0,43577.0,0.35582212]
[1644590360216,0.3247457,43588.0,43577.0,0.35582212]
[1644590360417,0.057399,43586.0,43576.0,0.17119921]
[1644590360614,0.057399,43586.0,43576.0,0.44386194]
[1644590361017,0.057399,43586.0,43580.0,0.33813062]
[1644590361515,0.1,43587.0,43580.0,0.33813062]
[1644590361717,0.507987,43594.0,43583.0,0.0744009]
[1644590361922,0.31742348,43592.0,43591.0,0.07761729]
[1644590362169,2.04134634,43599.0,43591.0,0.40159029]
[1644590362370,0.05,43603.0,43598.0,0.3178684]
[1644590362567,0.22925161,43605.0,43591.0,0.07761729]
[1644590362766,0.57116708,43605.0,43591.0,0.07761729]
[1644590363367,0.22925161,43605.0,43590.0,0.114742]
[1644590363566,0.00049038,43600.0,43593.0,0.3132837]
[1644590363967,0.00049038,43600.0,43593.0,0.3706587]
[1644590364171,0.00049038,43600.0,43593.0,0.3132837]
[1644590364368,0.28811021,43599.0,43594.0,0.07609748]
[1644590364572,0.28811021,43599.0,43581.0,0.30156069]
[1644590364573,0.21496084,43598.0,43581.0,0.30156069]
[1644590364771,0.25725758,43597.0,43591.0,0.00067682]
[1644590364973,0.057386,43595.0,43591.0,0.00067682]
[1644590365818,0.057386,43595.0,43594.0,0.32859343]
[1644590366226,0.00069308,43597.0,43594.0,0.32859343]
[1644590367125,0.57735349,43606.0,43599.0,0.07914089]
[1644590367325,0.00268337,43606.0,43599.0,0.07914089]
[1644590367528,0.00268337,43606.0,43603.0,0.323973]
[1644590367724,0.00268337,43606.0,43604.0,0.323973]
[1644590367925,0.00268337,43606.0,43600.0,0.05]
[1644590368224,0.01,43609.0,43605.0,0.45614748]
[1644590368421,0.0005831,43607.0,43606.0,0.07726365]
[1644590369425,0.005,43609.0,43594.0,0.3]
[1644590369426,0.29834722,43609.0,43594.0,0.3]
[1644590369691,0.29334722,43606.0,43584.0,0.34480582]
[1644590369888,0.29334722,43605.0,43590.0,0.057379]
[1644590370089,0.29334722,43605.0,43598.0,0.35867763]
[1644590370286,0.23597934,43601.0,43590.0,0.27269244]
[1644590370486,0.23597934,43601.0,43593.0,0.07454189]
[1644590370985,0.23597934,43601.0,43590.0,0.057379]
[1644590371189,0.23597934,43601.0,43581.0,0.17213711]
[1644590371190,0.37787231,43596.0,43589.0,0.36255313]
[1644590371389,0.37787231,43596.0,43580.0,0.19799609]
[1644590371690,0.057391,43594.0,43576.0,0.17119921]
[1644590371888,0.057391,43594.0,43579.0,0.14060509]
[1644590371889,0.057398,43594.0,43579.0,0.14060509]
[1644590372088,0.19030988,43588.0,43586.0,0.00070076]
[1644590372289,0.28326321,43590.0,43586.0,0.00070076]
[1644590372688,0.42471563,43591.0,43586.0,0.00070076]
[1644590372891,0.29334722,43597.0,43588.0,0.14060509]
[1644590373190,0.35857524,43599.0,43588.0,0.14060509]
[1644590373413,0.25857524,43599.0,43588.0,0.14060509]
[1644590373616,0.25857524,43599.0,43587.0,0.24670466]
[1644590373816,0.34145796,43594.0,43587.0,0.24670466]
[1644590374013,0.34145796,43594.0,43586.0,0.00070076]
[1644590374214,0.34145796,43594.0,43585.0,0.30423073]
[1644590374415,0.3705909,43596.0,43590.0,0.14060509]
[1644590374614,0.3705909,43596.0,43588.0,0.00069937]
[1644590374615,0.22979282,43592.0,43588.0,0.00069937]
[1644590374818,0.3705909,43596.0,43594.0,0.29257953]
[1644590375016,0.4279729,43596.0,43594.0,0.29257953]
[1644590375420,0.25781299,43595.0,43594.0,0.29257953]
[1644590376314,0.30781299,43595.0,43594.0,0.29257953]
[1644590376717,0.70122939,43595.0,43594.0,0.29257953]
[1644590377169,1.15740056,43594.0,43592.0,0.00069935]
[1644590377378,0.4082194,43593.0,43592.0,0.00069935]
[1644590377570,1.1,43592.0,43572.0,0.61078201]
[1644590377769,0.057409,43580.0,43565.0,0.3361917]
[1644590377972,0.31258037,43580.0,43575.0,0.56119512]
[1644590378169,1.15,43579.0,43575.0,0.56119512]
[1644590378371,1.15,43579.0,43575.0,0.49739512]
[1644590378372,1.25,43579.0,43575.0,0.49739512]
[1644590378569,1.314865,43579.0,43575.0,0.49739512]
[1644590378769,0.37333857,43577.0,43575.0,0.49720844]
[1644590379171,0.2648523,43577.0,43575.0,0.49720844]
[1644590379371,0.057426,43577.0,43575.0,0.49720844]
[1644590379768,0.057409,43577.0,43575.0,0.49720844]
[1644590380172,0.34227657,43589.0,43575.0,0.49720844]
[1644590380173,0.7174567,43592.0,43584.0,0.30781196]
[1644590380372,0.114793,43590.0,43585.0,0.29495212]
[1644590380811,0.114793,43590.0,43584.0,0.30781196]
[1644590381213,0.057392,43589.0,43584.0,0.30781196]
[1644590381715,0.057392,43589.0,43585.0,0.0007432]
[1644590382514,0.057392,43589.0,43588.0,0.08881558]
[1644590383112,0.214782,43594.0,43588.0,0.08881558]
[1644590383312,0.164782,43594.0,43588.0,0.08881558]
[1644590383712,0.114782,43594.0,43591.0,0.34275577]
[1644590383915,0.38286878,43597.0,43595.0,0.06878341]
[1644590384116,0.28286878,43597.0,43595.0,0.06878341]
[1644590384313,0.2934343,43601.0,43595.0,0.06878341]
[1644590384580,0.3508103,43601.0,43595.0,0.06878341]
[1644590384775,0.057376,43601.0,43599.0,0.36485121]
[1644590384973,0.2445147,43600.0,43595.0,0.06878341]
[1644590385181,0.19561117,43596.0,43591.0,0.20798858]
[1644590385600,0.19561117,43593.0,43590.0,0.00074355]
[1644590385779,0.19561117,43591.0,43590.0,0.00074355]
[1644590385976,0.057401,43591.0,43590.0,0.00074355]
[1644590386380,0.34578612,43590.0,43588.0,0.00074349]
[1644590386677,0.24974613,43589.0,43588.0,0.00074349]
[1644590386878,0.49433665,43589.0,43588.0,0.00074349]
[1644590387277,0.24974613,43589.0,43588.0,0.00074349]
[1644590387480,0.114804,43589.0,43581.0,0.07272461]
[1644590387684,0.19566381,43588.0,43586.0,0.0007435]
[1644590388315,0.43191032,43587.0,43586.0,0.0007435]
[1644590388716,0.43191032,43587.0,43581.0,0.29158167]
[1644590389013,0.43191032,43587.0,43585.0,0.00074351]
[1644590389014,0.48930775,43587.0,43585.0,0.00074351]
[1644590389214,0.35103794,43587.0,43585.0,0.00074351]
[1644590389414,0.45103794,43587.0,43585.0,0.00074351]
[1644590389617,0.74562846,43587.0,43585.0,0.00074351]
[1644590389817,0.79562846,43587.0,43575.0,0.49720844]
[1644590390016,0.114814,43582.0,43575.0,0.49720844]
[1644590390415,0.057407,43581.0,43580.0,0.32217708]
[1644590392464,0.33006719,43581.0,43578.0,0.00074201]
[1644590392867,0.057407,43581.0,43578.0,0.00074201]
[1644590393465,0.057407,43581.0,43580.0,0.32281235]
[1644590393866,0.057407,43581.0,43580.0,0.38792376]
[1644590394666,0.057407,43581.0,43580.0,0.32281235]
[1644590395368,0.057407,43581.0,43578.0,0.00063781]
[1644590395567,0.8228718,43580.0,43578.0,0.00063781]
[1644590395822,0.29504817,43579.0,43575.0,0.49720844]
[1644590396019,0.40987217,43579.0,43577.0,0.00063782]
[1644590396219,0.057411,43578.0,43577.0,0.00063782]
[1644590397020,0.057411,43578.0,43576.0,0.34731826]
[1644590397219,0.057411,43578.0,43576.0,0.42320443]
[1644590397420,0.057411,43578.0,43576.0,0.34731826]
[1644590398420,0.057411,43578.0,43575.0,0.00065378]
[1644590398624,0.172225,43578.0,43575.0,0.00065378]
[1644590399577,0.172225,43578.0,43574.0,0.00065378]
[1644590399773,0.114814,43578.0,43574.0,0.00065378]
[1644590399973,0.057407,43576.0,43574.0,0.00065378]
[1644590400173,0.057407,43576.0,43575.0,0.36695431]
[1644590400376,0.009194,43580.0,43576.0,1.1]
[1644590400583,0.22982282,43586.0,43577.0,0.05]
[1644590400775,0.22982282,43586.0,43585.0,0.06733414]
[1644590401380,0.22982282,43586.0,43585.0,0.39130714]
[1644590401577,0.22982282,43586.0,43580.0,0.14060509]
[1644590401778,0.30473658,43591.0,43580.0,0.14060509]
[1644590401978,0.30473658,43591.0,43583.0,0.00065133]
[1644590401979,0.114791,43590.0,43583.0,0.00065133]
[1644590402177,0.114791,43590.0,43583.0,0.14125642]
[1644590402376,0.2945815,43594.0,43583.0,0.14125642]
[1644590402577,0.2945815,43594.0,43583.0,0.00065133]
[1644590402578,0.55558481,43589.0,43583.0,0.00065133]
[1644590402779,0.2445815,43588.0,43583.0,0.00065133]
[1644590402976,0.229636,43587.0,43583.0,0.00065133]
[1644590403180,0.32578032,43579.0,43573.0,0.00020944]
[1644590403422,0.32578032,43579.0,43571.0,0.32339882]
[1644590403622,0.32738615,43574.0,43571.0,0.00020944]
[1644590403824,0.32738615,43574.0,43569.0,0.00020944]
[1644590403825,0.3059805,43573.0,43569.0,0.00020944]
[1644590404021,0.057416,43572.0,43566.0,0.00020944]
[1644590404423,0.057416,43572.0,43569.0,0.00065188]
[1644590404721,0.09802951,43573.0,43569.0,0.00065188]
[1644590404921,0.114837,43575.0,43569.0,0.00065188]
[1644590404922,0.31243771,43571.0,43569.0,0.00065188]
[1644590405125,0.31243771,43571.0,43563.0,0.00020944]
[1644590405126,1.1,43570.0,43563.0,0.00020944]
[1644590405325,1.1,43570.0,43555.0,0.0011]
[1644590405326,1.1,43565.0,43551.0,0.25558327]
[1644590405529,0.05,43557.0,43543.0,0.0033]
[1644590405730,1.1,43554.0,43539.0,0.11635442]
[1644590405927,0.05,43544.0,43535.0,0.11635442]
[1644590406124,0.05,43544.0,43530.0,0.0033]
[1644590406125,0.0574748,43541.0,43530.0,0.0033]
[1644590406324,0.0574748,43541.0,43529.0,0.0011]
[1644590406325,1.1,43538.0,43529.0,0.0011]
[1644590406529,1.1,43538.0,43526.0,0.0011]
[1644590406530,0.74184843,43537.0,43526.0,0.0011]
[1644590406724,0.57858569,43536.0,43527.0,0.0011]
[1644590406922,0.57858569,43536.0,43523.0,0.0011]
[1644590406923,0.0489,43529.0,43523.0,0.0011]
[1644590407178,0.17248417,43528.0,43523.0,0.0011]
[1644590407377,0.05,43524.0,43523.0,0.0011]
[1644590407777,0.0387,43527.0,43523.0,0.0011]
[1644590407977,0.26055206,43535.0,43525.0,0.0011]
[1644590408177,0.32828678,43533.0,43526.0,0.14060509]
[1644590408376,0.32828678,43533.0,43524.0,0.02222451]
[1644590408377,0.36977738,43529.0,43524.0,0.02222451]
[1644590408575,0.0387,43532.0,43524.0,0.02222451]
[1644590408775,0.096175,43532.0,43524.0,0.02222451]
[1644590409077,0.057477,43539.0,43524.0,0.02222451]
[1644590409078,0.3,43539.0,43531.0,0.0011]
[1644590409279,0.05,43540.0,43532.0,0.40179945]
[1644590409474,0.36381928,43557.0,43532.0,0.40179945]
[1644590409475,3.21953407,43541.0,43533.0,0.324278]
[1644590409675,0.31120409,43538.0,43528.0,0.0011]
[1644590409881,0.31120409,43538.0,43531.0,0.255036]
[1644590410276,0.057464,43541.0,43537.0,0.14170509]
[1644590410476,0.252725,43558.0,43531.0,0.255036]
[1644590410477,0.3,43548.0,43540.0,0.0011]
[1644590410677,0.12404192,43559.0,43536.0,0.0011]
[1644590410678,0.0423,43545.0,43536.0,0.0011]
[1644590410919,0.004982,43544.0,43535.0,0.14060509]
[1644590411125,0.0423,43556.0,43550.0,0.14060509]
[1644590411320,0.37538508,43556.0,43551.0,0.29436267]
[1644590411517,0.24685921,43563.0,43548.0,0.0423]
[1644590411518,0.004982,43555.0,43548.0,0.0423]
[1644590411715,0.004982,43555.0,43552.0,0.0011]
[1644590411917,0.34028189,43554.0,43540.0,0.29843283]
[1644590412117,0.34028189,43554.0,43543.0,0.0011]
[1644590412118,0.004982,43553.0,43543.0,0.0011]
[1644590412317,0.004982,43553.0,43544.0,0.0011]
[1644590412618,0.004982,43553.0,43540.0,0.23735508]
[1644590412918,0.34028189,43554.0,43552.0,0.0011]
[1644590413117,0.004982,43553.0,43546.0,0.00074175]
[1644590413716,0.053882,43551.0,43546.0,0.00074175]
[1644590413919,1.1,43545.0,43534.0,0.06989356]
[1644590414118,1.1,43545.0,43532.0,0.0011]
[1644590414119,0.26889032,43534.0,43532.0,0.0011]
[1644590414764,0.26889032,43534.0,43527.0,0.14060509]
[1644590414967,0.26889032,43534.0,43518.0,0.0011]
[1644590414968,0.1,43534.0,43518.0,0.0011]
[1644590415165,0.32942343,43525.0,43521.0,0.0011]
[1644590415365,0.62239747,43525.0,43521.0,0.0011]
[1644590415567,0.71173321,43525.0,43521.0,0.0011]
[1644590415966,0.42942343,43525.0,43521.0,0.0011]
[1644590416170,0.37893722,43525.0,43524.0,0.02332451]
[1644590416366,0.1,43525.0,43524.0,0.02222451]
[1644590416767,0.1,43528.0,43524.0,0.02332451]
[1644590416969,0.05,43528.0,43524.0,0.02222451]
[1644590417168,0.17247264,43527.0,43524.0,0.02222451]
[1644590417368,0.22247264,43527.0,43524.0,0.02222451]
[1644590417770,0.05,43527.0,43524.0,0.02332451]
[1644590417971,0.3,43533.0,43524.0,0.02332451]
[1644590418168,0.1423,43540.0,43524.0,0.02332451]
[1644590418169,0.057468,43537.0,43532.0,0.0011]
[1644590418420,0.34650685,43536.0,43529.0,0.0011]
[1644590418928,0.40453873,43537.0,43532.0,0.00074207]
[1644590419121,0.057473,43536.0,43532.0,0.00074207]
[1644590419325,0.057468,43537.0,43532.0,0.00074207]
[1644590419326,0.05,43537.0,43533.0,0.14060509]
[1644590419521,0.05,43537.0,43536.0,0.0011]
[1644590419721,0.20745979,43547.0,43536.0,0.0011]
[1644590419922,0.34762184,43545.0,43537.0,0.07390131]
[1644590420120,0.34762184,43545.0,43536.0,0.0011]
[1644590420328,0.34762184,43545.0,43534.0,0.00022621]
[1644590420329,0.057462,43542.0,43534.0,0.00022621]
[1644590420524,0.3,43541.0,43534.0,0.00022621]
[1644590420722,0.29910388,43538.0,43534.0,0.00022621]
[1644590420921,0.172438,43542.0,43534.0,0.00022621]
[1644590421122,0.12963416,43543.0,43532.0,0.08057896]
[1644590421325,0.057466,43540.0,43539.0,0.06490912]
[1644590421524,0.114946,43540.0,43537.0,0.07321548]
[1644590421721,0.05,43540.0,43537.0,0.07321548]
[1644590421923,0.05,43540.0,43539.0,0.0011]
[1644590422180,0.17241,43549.0,43545.0,0.07665111]
[1644590422378,0.252707,43561.0,43552.0,0.0825948]
[1644590422379,0.057444,43554.0,43552.0,0.0825948]
[1644590422775,0.057444,43554.0,43551.0,0.0011]
[1644590422976,0.35375758,43553.0,43551.0,0.0011]
[1644590423178,0.114896,43555.0,43548.0,0.00020368]
[1644590423379,0.114896,43555.0,43538.0,0.00020368]
[1644590423580,0.114896,43555.0,43536.0,0.0011]
[1644590423581,0.163803,43553.0,43536.0,0.0011]
[1644590423777,0.057466,43545.0,43536.0,0.0011]
[1644590423978,0.057466,43545.0,43538.0,0.06476462]
[1644590424282,0.31579391,43541.0,43537.0,0.00020368]
[1644590424477,0.05,43541.0,43536.0,0.31945924]
[1644590424677,0.05,43541.0,43536.0,0.0011]
[1644590424877,0.03222238,43548.0,43536.0,0.0011]
[1644590425077,1.86021682,43543.0,43536.0,0.0011]
[1644590425279,0.39953014,43540.0,43539.0,0.08748568]
[1644590425481,0.39953014,43540.0,43530.0,0.00090491]
[1644590425482,1.7,43539.0,43503.0,0.24474354]
[1644590425681,1.7,43539.0,43492.0,0.0522]
[1644590425682,0.38521633,43488.0,43487.0,0.36110914]
[1644590425931,0.05,43513.0,43487.0,0.19412527]
[1644590425932,0.07008,43505.0,43487.0,0.19412527]
[1644590426133,0.05,43487.0,43481.0,0.01]
[1644590426332,0.05,43487.0,43485.0,0.35158651]
[1644590426333,0.1,43487.0,43485.0,0.35158651]
[1644590426530,0.1,43487.0,43483.0,0.05459916]
[1644590426731,0.20753472,43487.0,43481.0,0.01]
[1644590426935,0.20753472,43487.0,43481.0,0.00859]
[1644590427135,0.25753472,43487.0,43481.0,0.00859]
[1644590427336,0.230161,43485.0,43481.0,0.00859]
[1644590427531,0.230161,43485.0,43482.0,0.21447528]
[1644590427532,0.095143,43484.0,43482.0,0.21447528]
[1644590427833,0.17261839,43483.0,43480.0,0.0011]
[1644590428035,0.3,43482.0,43480.0,0.0011]
[1644590428232,0.05,43482.0,43480.0,0.0011]
[1644590428431,0.0489,43482.0,43461.0,0.01]
[1644590428632,0.05754,43481.0,43477.0,0.05]
[1644590428834,0.17262461,43483.0,43478.0,0.324321]
[1644590429032,0.17262461,43483.0,43482.0,0.324321]
[1644590429680,0.17262461,43483.0,43481.0,0.33651388]
[1644590430086,0.1,43487.0,43481.0,0.33651388]
[1644590430284,0.3,43495.0,43485.0,0.05]
[1644590430483,0.3,43496.0,43485.0,0.05]
[1644590430684,0.3,43496.0,43493.0,0.3382847]
[1644590430883,0.115019,43497.0,43495.0,0.06390364]
[1644590431083,0.17253113,43497.0,43488.0,0.00074026]
[1644590431283,0.115025,43498.0,43492.0,0.20690422]
[1644590431483,0.3,43507.0,43493.0,0.324321]
[1644590431684,0.3,43507.0,43496.0,0.05]
[1644590431883,0.3,43507.0,43492.0,0.20690422]
[1644590432087,0.172539,43506.0,43492.0,0.20690422]
[1644590432283,0.3,43505.0,43503.0,0.32739715]
[1644590432485,2.58100819,43512.0,43498.0,0.0007402]
[1644590432486,0.02043832,43499.0,43498.0,0.0007402]
[1644590432685,0.02043832,43499.0,43498.0,0.46011715]
[1644590432883,0.02043832,43499.0,43498.0,0.13579615]
[1644590433318,0.02043832,43499.0,43498.0,0.67620149]
[1644590433516,0.02043832,43499.0,43498.0,0.32590037]
[1644590433717,0.02043832,43499.0,43498.0,0.08505595]
[1644590434215,0.02043832,43499.0,43496.0,0.05]
[1644590434720,0.02043832,43499.0,43472.0,0.114984]
[1644590434721,0.02043832,43499.0,43484.0,0.24843655]
[1644590434918,0.02043832,43499.0,43470.0,0.0508056]
[1644590434919,0.51355981,43488.0,43470.0,0.0508056]
[1644590435120,0.51355981,43488.0,43473.0,0.05]
[1644590435417,0.51355981,43488.0,43474.0,0.20136964]
[1644590435617,0.51355981,43488.0,43487.0,0.05]
[1644590435819,0.51355981,43488.0,43487.0,0.44463611]
[1644590436517,0.415019,43498.0,43488.0,1.1]
[1644590436518,0.3,43498.0,43488.0,1.1]
[1644590436716,0.07043832,43499.0,43495.0,0.05]
[1644590436717,0.02043832,43499.0,43495.0,0.05]